{"text_format":"3","workbook":"xlsx","n_sheets":1,"sheets":["Roční pracovní výkaz"],"not_rendered":{"defined_names":2},"read":"whole","date_system":"1900"}

{"sheet":"Roční pracovní výkaz","index":0,"n_rows":140,"n_cols":12,"rows_kept":140,"merged":[[0,1,1,11],[2,6,2,7],[2,8,2,9],[5,1,5,11],[39,1,39,11],[73,1,73,11],[107,1,107,11]]}
[null,"Časový výkaz zaměstnance"]
[]
[null,"Jméno zaměstnance:",null,"E-mail:",null,null,"Od začátku roku celkem:"]
[null,"Nadřízený:",null,"Telefon:",null,null,"Hodiny normální pracovní doby:",{"$f":"SUM(C16,C27,C38,C50,C61,C72,C84,C95,C106,C118,C129,C140)","v":0},"Přesčasové hodiny:",{"$f":"SUM(F16,F27,F38,F50,F61,F72,F84,F95,F106,F118,F129,F140)","v":0},"Celkem:",{"$f":"SUM(H4:J4)","v":0}]
[]
[null,"Leden, únor, březen      Časový výkaz zaměstnance: denní, týdenní, měsíční, roční"]
[null,"Leden","Týden 1","Přesčas","Týden 2","Přesčas ","Týden 3","Přesčas  ","Týden 4","Přesčas   ","Týden 5","Přesčas    "]
[null,"Pondělí"]
[null,"Úterý"]
[null,"Středa"]
[null,"Čtvrtek"]
[null,"Pátek"]
[null,"Sobota"]
[null,"Neděle"]
[null,"Celkový počet hodin za týden",{"$f":"SUBTOTAL(109,Leden[Týden 1])","v":0},{"$f":"SUBTOTAL(109,Leden[Přesčas])","v":0},{"$f":"SUBTOTAL(109,Leden[Týden 2])","v":0},{"$f":"SUBTOTAL(109,Leden[[Přesčas ]])","v":0},{"$f":"SUBTOTAL(109,Leden[Týden 3])","v":0},{"$f":"SUBTOTAL(109,Leden[[Přesčas  ]])","v":0},{"$f":"SUBTOTAL(109,Leden[Týden 4])","v":0},{"$f":"SUBTOTAL(109,Leden[[Přesčas   ]])","v":0},{"$f":"SUBTOTAL(109,Leden[Týden 5])","v":0},{"$f":"SUBTOTAL(109,Leden[[Přesčas    ]])","v":0}]
[null,"Leden celkem: Normální pracovní doba",{"$f":"SUM(Leden[[#Totals],[Týden 1]],Leden[[#Totals],[Týden 2]],Leden[[#Totals],[Týden 3]],Leden[[#Totals],[Týden 4]],Leden[[#Totals],[Týden 5]])","v":0},"Leden celkem: Přesčas",null,{"$f":"SUM(Leden[[#Totals],[Přesčas]],Leden[[#Totals],[Přesčas ]],Leden[[#Totals],[Přesčas  ]],Leden[[#Totals],[Přesčas   ]],Leden[[#Totals],[Přesčas    ]])","v":0}]
[]
[null,"Únor","Týden 1","Přesčas","Týden 2","Přesčas ","Týden 3","Přesčas  ","Týden 4","Přesčas   ","Týden 5","Přesčas    "]
[null,"Pondělí"]
[null,"Úterý"]
[null,"Středa"]
[null,"Čtvrtek"]
[null,"Pátek"]
[null,"Sobota"]
[null,"Neděle"]
[null,"Celkový počet hodin za týden",{"$f":"SUBTOTAL(109,Únor[Týden 1])","v":0},{"$f":"SUBTOTAL(109,Únor[Přesčas])","v":0},{"$f":"SUBTOTAL(109,Únor[Týden 2])","v":0},{"$f":"SUBTOTAL(109,Únor[[Přesčas ]])","v":0},{"$f":"SUBTOTAL(109,Únor[Týden 3])","v":0},{"$f":"SUBTOTAL(109,Únor[[Přesčas  ]])","v":0},{"$f":"SUBTOTAL(109,Únor[Týden 4])","v":0},{"$f":"SUBTOTAL(109,Únor[[Přesčas   ]])","v":0},{"$f":"SUBTOTAL(109,Únor[Týden 5])","v":0},{"$f":"SUBTOTAL(109,Únor[[Přesčas    ]])","v":0}]
[null,"Únor celkem: Normální pracovní doba",{"$f":"SUM(Únor[[#Totals],[Týden 1]],Únor[[#Totals],[Týden 2]],Únor[[#Totals],[Týden 3]],Únor[[#Totals],[Týden 4]],Únor[[#Totals],[Týden 5]])","v":0},"Únor celkem: Přesčas",null,{"$f":"SUM(Únor[[#Totals],[Přesčas]],Únor[[#Totals],[Přesčas ]],Únor[[#Totals],[Přesčas  ]],Únor[[#Totals],[Přesčas   ]],Únor[[#Totals],[Přesčas    ]])","v":0}]
[]
[null,"Březen","Týden 1","Přesčas","Týden 2","Přesčas ","Týden 3","Přesčas  ","Týden 4","Přesčas   ","Týden 5","Přesčas    "]
[null,"Pondělí"]
[null,"Úterý"]
[null,"Středa"]
[null,"Čtvrtek"]
[null,"Pátek"]
[null,"Sobota"]
[null,"Neděle"]
[null,"Celkový počet hodin za týden",{"$f":"SUBTOTAL(109,Březen[Týden 1])","v":0},{"$f":"SUBTOTAL(109,Březen[Přesčas])","v":0},{"$f":"SUBTOTAL(109,Březen[Týden 2])","v":0},{"$f":"SUBTOTAL(109,Březen[[Přesčas ]])","v":0},{"$f":"SUBTOTAL(109,Březen[Týden 3])","v":0},{"$f":"SUBTOTAL(109,Březen[[Přesčas  ]])","v":0},{"$f":"SUBTOTAL(109,Březen[Týden 4])","v":0},{"$f":"SUBTOTAL(109,Březen[[Přesčas   ]])","v":0},{"$f":"SUBTOTAL(109,Březen[Týden 5])","v":0},{"$f":"SUBTOTAL(109,Březen[[Přesčas    ]])","v":0}]
[null,"Březen celkem: Normální pracovní doba",{"$f":"SUM(Březen[[#Totals],[Týden 1]],Březen[[#Totals],[Týden 2]],Březen[[#Totals],[Týden 3]],Březen[[#Totals],[Týden 4]],Březen[[#Totals],[Týden 5]])","v":0},"Březen celkem: Přesčas",null,{"$f":"SUM(Březen[[#Totals],[Přesčas]],Březen[[#Totals],[Přesčas ]],Březen[[#Totals],[Přesčas  ]],Březen[[#Totals],[Přesčas   ]],Březen[[#Totals],[Přesčas    ]])","v":0}]
[]
[null,"Duben, květen, červen      Časový výkaz zaměstnance: denní, týdenní, měsíční, roční"]
[null,"Duben","Týden 1","Přesčas","Týden 2","Přesčas ","Týden 3","Přesčas  ","Týden 4","Přesčas   ","Týden 5","Přesčas    "]
[null,"Pondělí"]
[null,"Úterý"]
[null,"Středa"]
[null,"Čtvrtek"]
[null,"Pátek"]
[null,"Sobota"]
[null,"Neděle"]
[null,"Celkový počet hodin za týden",{"$f":"SUBTOTAL(109,Duben[Týden 1])","v":0},{"$f":"SUBTOTAL(109,Duben[Přesčas])","v":0},{"$f":"SUBTOTAL(109,Duben[Týden 2])","v":0},{"$f":"SUBTOTAL(109,Duben[[Přesčas ]])","v":0},{"$f":"SUBTOTAL(109,Duben[Týden 3])","v":0},{"$f":"SUBTOTAL(109,Duben[[Přesčas  ]])","v":0},{"$f":"SUBTOTAL(109,Duben[Týden 4])","v":0},{"$f":"SUBTOTAL(109,Duben[[Přesčas   ]])","v":0},{"$f":"SUBTOTAL(109,Duben[Týden 5])","v":0},{"$f":"SUBTOTAL(109,Duben[[Přesčas    ]])","v":0}]
[null,"Duben celkem: Normální pracovní doba",{"$f":"SUM(Duben[[#Totals],[Týden 1]],Duben[[#Totals],[Týden 2]],Duben[[#Totals],[Týden 3]],Duben[[#Totals],[Týden 4]],Duben[[#Totals],[Týden 5]])","v":0},"Duben celkem: Přesčas",null,{"$f":"SUM(Duben[[#Totals],[Přesčas]],Duben[[#Totals],[Přesčas ]],Duben[[#Totals],[Přesčas  ]],Duben[[#Totals],[Přesčas   ]],Duben[[#Totals],[Přesčas    ]])","v":0}]
[]
[null,"Květen","Týden 1","Přesčas","Týden 2","Přesčas ","Týden 3","Přesčas  ","Týden 4","Přesčas   ","Týden 5","Přesčas    "]
[null,"Pondělí"]
[null,"Úterý"]
[null,"Středa"]
[null,"Čtvrtek"]
[null,"Pátek"]
[null,"Sobota"]
[null,"Neděle"]
[null,"Celkový počet hodin za týden",{"$f":"SUBTOTAL(109,Květen[Týden 1])","v":0},{"$f":"SUBTOTAL(109,Květen[Přesčas])","v":0},{"$f":"SUBTOTAL(109,Květen[Týden 2])","v":0},{"$f":"SUBTOTAL(109,Květen[[Přesčas ]])","v":0},{"$f":"SUBTOTAL(109,Květen[Týden 3])","v":0},{"$f":"SUBTOTAL(109,Květen[[Přesčas  ]])","v":0},{"$f":"SUBTOTAL(109,Květen[Týden 4])","v":0},{"$f":"SUBTOTAL(109,Květen[[Přesčas   ]])","v":0},{"$f":"SUBTOTAL(109,Květen[Týden 5])","v":0},{"$f":"SUBTOTAL(109,Květen[[Přesčas    ]])","v":0}]
[null,"Květen celkem: Normální pracovní doba",{"$f":"SUM(Květen[[#Totals],[Týden 1]],Květen[[#Totals],[Týden 2]],Květen[[#Totals],[Týden 3]],Květen[[#Totals],[Týden 4]],Květen[[#Totals],[Týden 5]])","v":0},"Květen celkem: Přesčas",null,{"$f":"SUM(Květen[[#Totals],[Přesčas]],Květen[[#Totals],[Přesčas ]],Květen[[#Totals],[Přesčas  ]],Květen[[#Totals],[Přesčas   ]],Květen[[#Totals],[Přesčas    ]])","v":0}]
[]
[null,"Červen","Týden 1","Přesčas","Týden 2","Přesčas ","Týden 3","Přesčas  ","Týden 4","Přesčas   ","Týden 5","Přesčas    "]
[null,"Pondělí"]
[null,"Úterý"]
[null,"Středa"]
[null,"Čtvrtek"]
[null,"Pátek"]
[null,"Sobota"]
[null,"Neděle"]
[null,"Celkový počet hodin za týden",{"$f":"SUBTOTAL(109,Červen[Týden 1])","v":0},{"$f":"SUBTOTAL(109,Červen[Přesčas])","v":0},{"$f":"SUBTOTAL(109,Červen[Týden 2])","v":0},{"$f":"SUBTOTAL(109,Červen[[Přesčas ]])","v":0},{"$f":"SUBTOTAL(109,Červen[Týden 3])","v":0},{"$f":"SUBTOTAL(109,Červen[[Přesčas  ]])","v":0},{"$f":"SUBTOTAL(109,Červen[Týden 4])","v":0},{"$f":"SUBTOTAL(109,Červen[[Přesčas   ]])","v":0},{"$f":"SUBTOTAL(109,Červen[Týden 5])","v":0},{"$f":"SUBTOTAL(109,Červen[[Přesčas    ]])","v":0}]
[null,"Červen celkem: Normální pracovní doba",{"$f":"SUM(Červen[[#Totals],[Týden 1]],Červen[[#Totals],[Týden 2]],Červen[[#Totals],[Týden 3]],Červen[[#Totals],[Týden 4]],Červen[[#Totals],[Týden 5]])","v":0},"Červen celkem: Přesčas",null,{"$f":"SUM(Červen[[#Totals],[Přesčas]],Červen[[#Totals],[Přesčas ]],Červen[[#Totals],[Přesčas  ]],Červen[[#Totals],[Přesčas   ]],Červen[[#Totals],[Přesčas    ]])","v":0}]
[]
[null,"Červenec, srpen, září      Časový výkaz zaměstnance: denní, týdenní, měsíční, roční"]
[null,"Červenec","Týden 1","Přesčas","Týden 2","Přesčas ","Týden 3","Přesčas  ","Týden 4","Přesčas   ","Týden 5","Přesčas    "]
[null,"Pondělí"]
[null,"Úterý"]
[null,"Středa"]
[null,"Čtvrtek"]
[null,"Pátek"]
[null,"Sobota"]
[null,"Neděle"]
[null,"Celkový počet hodin za týden",{"$f":"SUBTOTAL(109,Červenec[Týden 1])","v":0},{"$f":"SUBTOTAL(109,Červenec[Přesčas])","v":0},{"$f":"SUBTOTAL(109,Červenec[Týden 2])","v":0},{"$f":"SUBTOTAL(109,Červenec[[Přesčas ]])","v":0},{"$f":"SUBTOTAL(109,Červenec[Týden 3])","v":0},{"$f":"SUBTOTAL(109,Červenec[[Přesčas  ]])","v":0},{"$f":"SUBTOTAL(109,Červenec[Týden 4])","v":0},{"$f":"SUBTOTAL(109,Červenec[[Přesčas   ]])","v":0},{"$f":"SUBTOTAL(109,Červenec[Týden 5])","v":0},{"$f":"SUBTOTAL(109,Červenec[[Přesčas    ]])","v":0}]
[null,"Červenec celkem: Normální pracovní doba",{"$f":"SUM(Červenec[[#Totals],[Týden 1]],Červenec[[#Totals],[Týden 2]],Červenec[[#Totals],[Týden 3]],Červenec[[#Totals],[Týden 4]],Červenec[[#Totals],[Týden 5]])","v":0},"Červenec celkem: Přesčas",null,{"$f":"SUM(Červenec[[#Totals],[Přesčas]],Červenec[[#Totals],[Přesčas ]],Červenec[[#Totals],[Přesčas  ]],Červenec[[#Totals],[Přesčas   ]],Červenec[[#Totals],[Přesčas    ]])","v":0}]
[]
[null,"Srpen","Týden 1","Přesčas","Týden 2","Přesčas ","Týden 3","Přesčas  ","Týden 4","Přesčas   ","Týden 5","Přesčas    "]
[null,"Pondělí"]
[null,"Úterý"]
[null,"Středa"]
[null,"Čtvrtek"]
[null,"Pátek"]
[null,"Sobota"]
[null,"Neděle"]
[null,"Celkový počet hodin za týden",{"$f":"SUBTOTAL(109,Srpen[Týden 1])","v":0},{"$f":"SUBTOTAL(109,Srpen[Přesčas])","v":0},{"$f":"SUBTOTAL(109,Srpen[Týden 2])","v":0},{"$f":"SUBTOTAL(109,Srpen[[Přesčas ]])","v":0},{"$f":"SUBTOTAL(109,Srpen[Týden 3])","v":0},{"$f":"SUBTOTAL(109,Srpen[[Přesčas  ]])","v":0},{"$f":"SUBTOTAL(109,Srpen[Týden 4])","v":0},{"$f":"SUBTOTAL(109,Srpen[[Přesčas   ]])","v":0},{"$f":"SUBTOTAL(109,Srpen[Týden 5])","v":0},{"$f":"SUBTOTAL(109,Srpen[[Přesčas    ]])","v":0}]
[null,"Srpen celkem: Normální pracovní doba",{"$f":"SUM(Srpen[[#Totals],[Týden 1]],Srpen[[#Totals],[Týden 2]],Srpen[[#Totals],[Týden 3]],Srpen[[#Totals],[Týden 4]],Srpen[[#Totals],[Týden 5]])","v":0},"Srpen celkem: Přesčas",null,{"$f":"SUM(Srpen[[#Totals],[Přesčas]],Srpen[[#Totals],[Přesčas ]],Srpen[[#Totals],[Přesčas  ]],Srpen[[#Totals],[Přesčas   ]],Srpen[[#Totals],[Přesčas    ]])","v":0}]
[]
[null,"Září","Týden 1","Přesčas","Týden 2","Přesčas ","Týden 3","Přesčas  ","Týden 4","Přesčas   ","Týden 5","Přesčas    "]
[null,"Pondělí"]
[null,"Úterý"]
[null,"Středa"]
[null,"Čtvrtek"]
[null,"Pátek"]
[null,"Sobota"]
[null,"Neděle"]
[null,"Celkový počet hodin za týden",{"$f":"SUBTOTAL(109,Září[Týden 1])","v":0},{"$f":"SUBTOTAL(109,Září[Přesčas])","v":0},{"$f":"SUBTOTAL(109,Září[Týden 2])","v":0},{"$f":"SUBTOTAL(109,Září[[Přesčas ]])","v":0},{"$f":"SUBTOTAL(109,Září[Týden 3])","v":0},{"$f":"SUBTOTAL(109,Září[[Přesčas  ]])","v":0},{"$f":"SUBTOTAL(109,Září[Týden 4])","v":0},{"$f":"SUBTOTAL(109,Září[[Přesčas   ]])","v":0},{"$f":"SUBTOTAL(109,Září[Týden 5])","v":0},{"$f":"SUBTOTAL(109,Září[[Přesčas    ]])","v":0}]
[null,"Září celkem: Normální pracovní doba",{"$f":"SUM(Září[[#Totals],[Týden 1]],Září[[#Totals],[Týden 2]],Září[[#Totals],[Týden 3]],Září[[#Totals],[Týden 4]],Září[[#Totals],[Týden 5]])","v":0},"Září celkem: Přesčas",null,{"$f":"SUM(Září[[#Totals],[Přesčas]],Září[[#Totals],[Přesčas ]],Září[[#Totals],[Přesčas  ]],Září[[#Totals],[Přesčas   ]],Září[[#Totals],[Přesčas    ]])","v":0}]
[]
[null,"Říjen, listopad, prosinec      Časový výkaz zaměstnance: denní, týdenní, měsíční, roční"]
[null,"Říjen","Týden 1","Přesčas","Týden 2","Přesčas ","Týden 3","Přesčas  ","Týden 4","Přesčas   ","Týden 5","Přesčas    "]
[null,"Pondělí"]
[null,"Úterý"]
[null,"Středa"]
[null,"Čtvrtek"]
[null,"Pátek"]
[null,"Sobota"]
[null,"Neděle"]
[null,"Celkový počet hodin za týden",{"$f":"SUBTOTAL(109,Říjen[Týden 1])","v":0},{"$f":"SUBTOTAL(109,Říjen[Přesčas])","v":0},{"$f":"SUBTOTAL(109,Říjen[Týden 2])","v":0},{"$f":"SUBTOTAL(109,Říjen[[Přesčas ]])","v":0},{"$f":"SUBTOTAL(109,Říjen[Týden 3])","v":0},{"$f":"SUBTOTAL(109,Říjen[[Přesčas  ]])","v":0},{"$f":"SUBTOTAL(109,Říjen[Týden 4])","v":0},{"$f":"SUBTOTAL(109,Říjen[[Přesčas   ]])","v":0},{"$f":"SUBTOTAL(109,Říjen[Týden 5])","v":0},{"$f":"SUBTOTAL(109,Říjen[[Přesčas    ]])","v":0}]
[null,"Říjen celkem: Normální pracovní doba",{"$f":"SUM(Říjen[[#Totals],[Týden 1]],Říjen[[#Totals],[Týden 2]],Říjen[[#Totals],[Týden 3]],Říjen[[#Totals],[Týden 4]],Říjen[[#Totals],[Týden 5]])","v":0},"Říjen celkem: Přesčas",null,{"$f":"SUM(Říjen[[#Totals],[Přesčas]],Říjen[[#Totals],[Přesčas ]],Říjen[[#Totals],[Přesčas  ]],Říjen[[#Totals],[Přesčas   ]],Říjen[[#Totals],[Přesčas    ]])","v":0}]
[]
[null,"Listopad","Týden 1","Přesčas","Týden 2","Přesčas ","Týden 3","Přesčas  ","Týden 4","Přesčas   ","Týden 5","Přesčas    "]
[null,"Pondělí"]
[null,"Úterý"]
[null,"Středa"]
[null,"Čtvrtek"]
[null,"Pátek"]
[null,"Sobota"]
[null,"Neděle"]
[null,"Celkový počet hodin za týden",{"$f":"SUBTOTAL(109,Listopad[Týden 1])","v":0},{"$f":"SUBTOTAL(109,Listopad[Přesčas])","v":0},{"$f":"SUBTOTAL(109,Listopad[Týden 2])","v":0},{"$f":"SUBTOTAL(109,Listopad[[Přesčas ]])","v":0},{"$f":"SUBTOTAL(109,Listopad[Týden 3])","v":0},{"$f":"SUBTOTAL(109,Listopad[[Přesčas  ]])","v":0},{"$f":"SUBTOTAL(109,Listopad[Týden 4])","v":0},{"$f":"SUBTOTAL(109,Listopad[[Přesčas   ]])","v":0},{"$f":"SUBTOTAL(109,Listopad[Týden 5])","v":0},{"$f":"SUBTOTAL(109,Listopad[[Přesčas    ]])","v":0}]
[null,"Listopad celkem: Normální pracovní doba",{"$f":"SUM(Listopad[[#Totals],[Týden 1]],Listopad[[#Totals],[Týden 2]],Listopad[[#Totals],[Týden 3]],Listopad[[#Totals],[Týden 4]],Listopad[[#Totals],[Týden 5]])","v":0},"Listopad celkem: Přesčas",null,{"$f":"SUM(Listopad[[#Totals],[Přesčas]],Listopad[[#Totals],[Přesčas ]],Listopad[[#Totals],[Přesčas  ]],Listopad[[#Totals],[Přesčas   ]],Listopad[[#Totals],[Přesčas    ]])","v":0}]
[]
[null,"Prosinec","Týden 1","Přesčas","Týden 2","Přesčas ","Týden 3","Přesčas  ","Týden 4","Přesčas   ","Týden 5","Přesčas    "]
[null,"Pondělí"]
[null,"Úterý"]
[null,"Středa"]
[null,"Čtvrtek"]
[null,"Pátek"]
[null,"Sobota"]
[null,"Neděle"]
[null,"Celkový počet hodin za týden",{"$f":"SUBTOTAL(109,Prosinec[Týden 1])","v":0},{"$f":"SUBTOTAL(109,Prosinec[Přesčas])","v":0},{"$f":"SUBTOTAL(105,Prosinec[Týden 2])","v":0},{"$f":"SUBTOTAL(109,Prosinec[[Přesčas ]])","v":0},{"$f":"SUBTOTAL(109,Prosinec[Týden 3])","v":0},{"$f":"SUBTOTAL(109,Prosinec[[Přesčas  ]])","v":0},{"$f":"SUBTOTAL(109,Prosinec[Týden 4])","v":0},{"$f":"SUBTOTAL(109,Prosinec[[Přesčas   ]])","v":0},{"$f":"SUBTOTAL(109,Prosinec[Týden 5])","v":0},{"$f":"SUBTOTAL(109,Prosinec[[Přesčas    ]])","v":0}]
[null,"Prosinec celkem: Normální pracovní doba",{"$f":"SUM(Prosinec[[#Totals],[Týden 1]],Prosinec[[#Totals],[Týden 2]],Prosinec[[#Totals],[Týden 3]],Prosinec[[#Totals],[Týden 4]],Prosinec[[#Totals],[Týden 5]])","v":0},"Prosinec celkem: Přesčas",null,{"$f":"SUM(Prosinec[[#Totals],[Přesčas]],Prosinec[[#Totals],[Přesčas ]],Prosinec[[#Totals],[Přesčas  ]],Prosinec[[#Totals],[Přesčas   ]],Prosinec[[#Totals],[Přesčas    ]])","v":0}]